bitfinex/quotes_ETHUSD_20230117
["timestamp","ask_amount","ask_price","bid_price","bid_amount"]
[1673956806451,2.45009535,1569.9,1569.8,7.8685686]
[1673956806662,2.38408015,1569.9,1569.8,1.52261671]
[1673956807003,2.38408015,1569.9,1569.8,13.59245942]
[1673956807004,0.95358528,1569.9,1569.8,13.59245942]
[1673956807347,0.95558528,1569.9,1569.8,13.61473753]
[1673956807519,0.95358528,1569.9,1569.8,8.87143517]
[1673956808089,2.38408015,1570.0,1569.8,18.24166517]
[1673956808404,2.38408015,1570.0,1569.8,15.24166517]
[1673956809688,2.38408015,1570.0,1569.8,8.87143517]
[1673956809820,0.95358528,1569.9,1569.8,8.87143517]
[1673956810040,0.95358528,1569.9,1569.8,11.87143517]
[1673956812028,2.67704385,1570.1,1569.9,0.94832444]
[1673956812243,2.61304385,1570.1,1569.9,2.2303004]
[1673956812571,2.61104385,1570.1,1569.9,2.2303004]
[1673956812805,0.95358528,1570.0,1569.9,2.2303004]
[1673956813535,0.95358528,1570.0,1569.9,1.28197596]
[1673956815189,2.38408015,1570.0,1569.9,1.28197596]
[1673956815394,2.38408015,1570.0,1569.9,7.65180596]
[1673956815706,2.33408015,1570.0,1569.9,7.67608407]
[1673956815915,1.43049487,1570.0,1569.9,7.67608407]
[1673956819189,1.42772662,1570.0,1569.9,6.39410811]
[1673956819401,1.42772662,1570.0,1569.9,0.02427811]
[1673956819621,3.33507277,1570.0,1569.8,6.39416811]
[1673956819922,3.33507277,1570.0,1569.8,19.13447811]
[1673956819923,1.42772662,1570.0,1569.8,19.13447811]
[1673956820124,0.2929637,1570.1,1569.8,19.13447811]
[1673956820325,0.2269637,1570.1,1570.0,12.73884]
[1673956820575,0.2269637,1570.1,1570.0,12.76311811]
[1673956823305,0.2269637,1570.1,1570.0,19.13253811]
[1673956824142,0.2269637,1570.1,1570.0,6.39369811]
[1673956824589,0.20991338,1570.1,1570.0,6.39369811]
[1673956825112,2.11725953,1570.1,1570.0,6.39369811]
[1673956825511,2.11725953,1570.1,1570.0,0.02427811]
[1673956825842,2.11725953,1570.1,1569.9,12.76370811]
[1673956826063,0.20991338,1570.1,1570.0,1.27637081]
[1673956826245,0.20991338,1570.1,1570.0,7.64579081]
[1673956826461,0.20991338,1570.1,1570.0,7.67006892]
[1673956827308,1.16295746,1570.1,1570.0,14.03948892]
[1673956828141,2.59250754,1570.1,1570.0,14.03948892]
[1673956830268,2.59250754,1570.1,1570.0,20.40890892]
[1673956830579,2.59250754,1570.1,1570.0,14.03948892]
[1673956830746,2.59250754,1570.1,1570.0,7.67006892]
[1673956832207,1.16295746,1570.1,1570.0,14.03948892]
[1673956832410,2.59250754,1570.1,1570.0,14.03948892]
[1673956832630,2.59250754,1570.1,1570.0,7.67006892]
[1673956833624,4.99280961,1570.1,1570.0,0.02427811]
[1673956833832,4.99280961,1570.1,1569.7,24.14376811]
[1673956833833,10.41017953,1570.1,1569.7,24.14376811]
[1673956833988,2.38235251,1570.0,1569.7,24.14176811]
[1673956834315,0.952941,1569.9,1569.7,24.14376811]
[1673956834528,1.42941151,1570.0,1569.7,17.77331811]
[1673956834529,2.38235251,1570.0,1569.7,17.77331811]
[1673956834760,0.952941,1569.9,1569.7,11.40297811]
[1673956834972,7.800781,1569.9,1569.7,11.40297811]
[1673956835145,1.018941,1569.9,1569.7,11.40297811]
[1673956835360,0.952941,1569.9,1569.7,11.40297811]
[1673956835625,1.430941,1569.9,1569.7,11.40297811]
[1673956836676,0.952941,1569.9,1569.7,11.40297811]
[1673956836889,2.38235251,1569.9,1569.7,11.40297811]
[1673956837413,0.952941,1569.9,1569.7,19.55094492]
[1673956837570,2.38235251,1569.9,1569.7,11.40297811]
[1673956838048,0.952941,1569.8,1569.7,11.40297811]
[1673956838410,0.952941,1569.9,1569.7,0.02427811]
[1673956838620,0.952941,1569.9,1569.6,6.39526811]
[1673956838887,2.38235251,1569.9,1569.6,10.22957792]
[1673956839269,0.952941,1569.9,1569.6,10.22957792]
[1673956839494,2.38235251,1569.9,1569.6,16.60061792]
[1673956840368,0.952941,1569.9,1569.6,22.97165792]
[1673956841040,0.954941,1569.9,1569.6,23.6159971]
[1673956841251,0.952941,1569.9,1569.8,12.74046]
[1673956841464,0.952941,1569.9,1569.8,12.76473811]
[1673956841721,0.952941,1569.9,1569.8,6.39450811]
[1673956841928,0.952941,1569.9,1569.8,8.20716089]
[1673956843353,2.38235251,1569.9,1569.8,8.20716089]
[1673956843669,0.952941,1569.9,1569.8,8.20716089]
[1673956844097,2.38235251,1569.9,1569.8,0.02427811]
[1673956844320,1.42941151,1569.9,1569.7,9.39469811]
[1673956844633,0.95410869,1569.8,1569.7,6.39469811]
[1673956846609,0.95410869,1569.8,1569.7,19.13597811]
[1673956847263,1.42941151,1569.9,1569.7,19.13597811]
[1673956847264,0.95410869,1569.9,1569.7,19.13255986]
[1673956847472,0.95410869,1569.9,1569.7,22.30344766]
[1673956847737,0.95410869,1569.8,1569.7,22.30344766]
[1673956847952,0.95410869,1569.9,1569.7,22.30344766]
[1673956849259,0.95410869,1569.9,1569.7,25.42007173]
[1673956849522,0.95410869,1569.9,1569.8,21.65269717]
[1673956849674,0.95410869,1569.9,1569.8,24.67697528]
[1673956850747,2.3835202,1570.0,1569.8,24.67697528]
[1673956850971,0.95410869,1569.9,1569.8,24.67697528]
[1673956851155,2.3835202,1570.0,1569.8,24.67697528]
[1673956851363,2.3835202,1570.0,1569.9,2.46769753]
[1673956851569,2.3835202,1570.0,1569.9,19.10949]
[1673956851840,2.3835202,1570.0,1569.9,19.13376811]
[1673956856246,2.3798956,1570.0,1569.9,19.13376811]
[1673956857822,12.1205591,1570.0,1569.9,0.02427811]
[1673956858041,17.12653295,1570.0,1569.5,36.50662811]
[1673956858208,0.95451312,1569.8,1569.5,36.50662811]
[1673956858399,4.16567953,1569.9,1569.5,36.50662811]
[1673956858711,4.09967953,1569.9,1569.5,36.50662811]
[1673956858919,0.95451951,1569.7,1569.5,36.50662811]
[1673956859125,0.95452042,1569.7,1569.5,16.39542811]
[1673956859398,4.16567953,1569.9,1569.5,16.39542811]
[1673956859597,0.95433949,1569.7,1569.5,27.59322811]
[1673956859769,2.45302623,1569.9,1569.5,27.75998292]
[1673956859986,0.95433762,1569.7,1569.5,33.96467811]
[1673956860180,0.9543386,1569.7,1569.5,22.76687811]
[1673956860387,0.95434228,1569.7,1569.5,22.76687811]
[1673956860812,0.95434228,1569.7,1569.5,29.13832811]
[1673956861056,0.95434228,1569.7,1569.5,34.76853992]
[1673956861544,8.82286623,1569.9,1569.5,34.76853992]
[1673956861800,8.82286623,1569.9,1569.5,29.13832811]
[1673956862019,0.95433913,1569.7,1569.5,29.13832811]
[1673956862177,0.9543363,1569.7,1569.5,29.13832811]
[1673956862387,0.95428242,1569.8,1569.7,0.9543363]
[1673956862821,0.95428629,1569.8,1569.7,13.6956163]
[1673956863068,2.45292623,1570.0,1569.7,13.71989441]
[1673956863222,2.38692623,1570.0,1569.7,13.71989441]
[1673956863437,0.95435936,1569.8,1569.7,13.71989441]
[1673956863661,2.45292623,1570.0,1569.7,15.22627972]
[1673956863890,0.95436916,1569.8,1569.7,13.71989441]
[1673956865031,0.95436916,1569.8,1569.7,0.97861441]
[1673956865388,0.95436916,1569.8,1569.7,0.9543363]
[1673956865389,2.8916341,1569.8,1569.7,0.9543363]
[1673956865595,9.2618641,1569.8,1569.7,0.9543363]
[1673956865907,9.3278641,1569.8,1569.7,0.9543363]
[1673956866113,11.32691643,1569.8,1569.7,0.9543363]
[1673956867138,13.23594266,1569.8,1569.7,0.9543363]
[1673956867385,28.13615935,1569.8,1569.7,0.9543363]
[1673956867697,28.61415935,1569.8,1569.7,0.9543363]
[1673956870755,13.23294308,1569.8,1569.7,0.9543363]
[1673956871424,19.60317308,1569.8,1569.7,0.9543363]
[1673956871748,20.08117308,1569.8,1569.7,0.9543363]
[1673956871996,18.65078175,1569.8,1569.7,0.9543363]
[1673956872895,21.76740582,1569.8,1569.7,0.9543363]
[1673956873106,28.13763582,1569.8,1569.7,0.9543363]
[1673956873350,21.76740582,1569.8,1569.7,0.9543363]
[1673956874259,24.15119877,1569.8,1569.7,0.9543363]
[1673956874469,22.69119877,1569.8,1569.7,0.9543363]
[1673956874719,20.30740582,1569.8,1569.7,0.9543363]
[1673956876314,17.19078175,1569.8,1569.7,0.9543363]
[1673956876621,12.25043235,1569.8,1569.7,0.95210794]
[1673956877097,5.40220235,1569.8,1569.7,0.95210794]
[1673956877841,3.49493293,1569.8,1569.7,0.95210794]
[1673956878096,3.42893293,1569.8,1569.7,0.95210794]
[1673956879356,9.79916293,1569.8,1569.7,0.95210794]
[1673956879576,9.86516293,1569.8,1569.7,0.95210794]
[1673956880152,1.01901401,1569.8,1569.7,0.95210794]
[1673956880362,0.95301401,1569.8,1569.7,13.69338794]
[1673956880632,0.95301401,1569.8,1569.7,13.71766605]
[1673956880991,0.95301401,1569.8,1569.7,0.97638605]
[1673956880992,7.32324401,1569.8,1569.7,0.97638605]
[1673956881220,8.81912461,1569.8,1569.7,0.95210794]
[1673956881445,11.31038401,1569.8,1569.7,0.95210794]
[1673956882120,17.68061401,1569.8,1569.7,0.95210794]
[1673956882271,17.6806715,1569.8,1569.7,0.95210794]
[1673956883462,16.2507909,1569.8,1569.7,0.95210794]
[1673956884570,9.8805609,1569.8,1569.7,0.95210794]
[1673956888304,11.3104415,1569.8,1569.7,0.95210794]
[1673956889137,29.57172349,1569.8,1569.7,0.95210794]
[1673956889347,28.14184289,1569.8,1569.7,0.95210794]
[1673956889563,28.61984289,1569.8,1569.7,0.95210794]
[1673956890987,31.00363584,1569.8,1569.7,0.95210794]
[1673956891204,31.00363584,1569.8,1569.7,4.94741194]
[1673956891205,31.23363584,1569.8,1569.7,4.94741194]
[1673956891432,31.23318055,1569.8,1569.7,4.94741194]
[1673956892656,28.8493876,1569.8,1569.7,4.94741194]
[1673956893111,30.27943454,1569.8,1569.7,4.94741194]
[1673956893396,28.8493876,1569.8,1569.7,4.94741194]
[1673956893809,29.32636642,1569.8,1569.7,4.94741194]
[1673956895726,26.94257347,1569.8,1569.7,4.94741194]
[1673956897077,29.79349003,1569.8,1569.7,4.94741194]
[1673956897309,31.24049003,1569.8,1569.7,4.94741194]
[1673956897500,28.38957347,1569.8,1569.7,4.94741194]
[1673956898975,31.73462277,1569.8,1569.7,4.94741194]
[1673956899190,28.38957347,1569.8,1569.7,4.94425739]
[1673956899869,31.73462277,1569.8,1569.7,0.66016443]
[1673956900914,28.38957347,1569.8,1569.7,0.66016443]
[1673956901545,31.25040074,1569.8,1569.7,0.66016443]
[1673956902285,28.38957347,1569.8,1569.7,0.66016443]
[1673956902459,0.0991935,1569.6,1569.2,0.02427811]
[1673956902670,0.0991935,1569.6,1569.1,0.02935985]
[1673956902671,6.24328049,1569.3,1569.1,0.02935985]
[1673956903031,10.94929407,1569.2,1569.1,0.02935985]
[1673956903194,11.01529407,1569.2,1569.1,0.02935985]
[1673956903598,1.526,1569.2,1569.1,0.02935985]
[1673956903969,1.46,1569.2,1569.1,0.02935985]
[1673956904352,15.19367782,1569.3,1569.1,0.02935985]
[1673956904893,21.56618782,1569.3,1569.1,0.02935985]
[1673956905086,27.52851454,1569.3,1569.1,0.02935985]
[1673956905554,0.95314221,1569.2,1569.1,0.02935985]
[1673956906433,8.82116782,1569.3,1569.1,0.02935985]
[1673956906642,13.76381221,1569.3,1569.1,0.02935985]
[1673956907264,0.95314221,1569.2,1569.1,0.02935985]
[1673956907590,15.19357782,1569.3,1569.1,0.02935985]
[1673956907841,13.76381221,1569.3,1569.1,0.02935985]
[1673956908273,15.19357782,1569.3,1569.1,0.02935985]
[1673956908482,0.95314221,1569.2,1569.1,0.02935985]
[1673956908811,6.37267,1569.2,1569.1,0.02935985]
[1673956909114,6.43867,1569.2,1569.1,0.02935985]
[1673956910320,0.066,1569.2,1569.1,0.02935985]
[1673956910530,13.76381221,1569.3,1569.1,0.02935985]
[1673956912165,13.76058593,1569.3,1569.1,0.02935985]
[1673956913211,13.76058593,1569.3,1569.0,0.00403884]
[1673956914728,12.80744372,1569.3,1569.0,0.00403884]
[1673956914944,12.80744372,1569.3,1569.0,1.28465933]
[1673956915262,0.066,1569.3,1569.0,7.65802933]
[1673956915472,13.76349221,1569.4,1569.0,14.05578744]
[1673956917203,20.13559221,1569.4,1569.0,7.68230744]
[1673956917396,22.48593799,1569.4,1569.0,6.40168695]
[1673956917606,25.60256206,1569.4,1569.0,0.02831695]
[1673956917847,1.0,1569.3,1569.0,0.00403884]
[1673956918076,6.37308,1569.1,1569.0,0.00403884]
[1673956918390,0.066,1569.1,1569.0,0.00403884]
[1673956918553,0.066,1569.2,1569.0,0.00403884]
[1673956918770,7.91665,1569.3,1569.0,0.00403884]
[1673956919320,7.43845,1569.3,1569.0,0.00403884]
[1673956920182,7.39159221,1569.3,1569.0,0.00403884]
[1673956921220,6.43845,1569.3,1569.0,0.00403884]
[1673956922726,7.43845,1569.3,1569.0,0.00403884]
[1673956922873,6.43845,1569.3,1569.0,0.00403884]
[1673956923396,7.43845,1569.3,1569.0,0.00403884]
[1673956923811,13.8109,1569.3,1569.0,0.00403884]
[1673956924298,1.0,1569.2,1569.0,0.00403884]
[1673956924505,6.37308,1569.1,1569.0,0.00403884]
[1673956924811,6.43908,1569.1,1569.0,0.00403884]
[1673956929896,13.76530221,1569.1,1569.0,0.00403884]
[1673956930025,20.13838221,1569.1,1569.0,0.00403884]
[1673956931425,26.14909306,1569.1,1569.0,0.00403884]
[1673956931651,2.009,1569.0,1568.9,0.03053797]
[1673956931964,9.94235546,1569.0,1568.9,0.03053797]
[1673956932135,1.49787678,1569.0,1568.9,0.03053797]
[1673956932325,7.80535678,1569.0,1568.9,0.03053797]
[1673956932539,7.87135678,1569.0,1568.9,0.03053797]
[1673956932787,9.72826228,1569.0,1568.9,0.03053797]
[1673956933413,15.72941774,1569.0,1568.9,0.03053797]
[1673956933646,21.14922096,1569.0,1568.9,0.03053797]
[1673956933832,22.1031663,1569.0,1568.9,0.03053797]
[1673956934380,32.4986463,1569.0,1568.9,0.03053797]
[1673956934605,32.25168445,1569.0,1568.9,0.03053797]
[1673956934928,25.40150934,1569.0,1568.9,0.03053797]
[1673956936262,31.54498934,1569.0,1568.9,0.03053797]
[1673956937740,32.49898294,1569.0,1568.9,0.03053797]
[1673956938336,31.54498934,1569.0,1568.9,0.03053797]
[1673956938542,31.77498934,1569.0,1568.9,0.03053797]
[1673956939155,32.25168445,1569.0,1568.9,0.03053797]
[1673956939392,34.63607805,1569.0,1568.9,0.03053797]
[1673956940374,26.35508317,1569.0,1568.9,0.03053797]
[1673956940523,28.26261871,1569.0,1568.9,0.03053797]
[1673956941085,28.26277824,1569.0,1568.9,0.03053797]
[1673956941483,28.26278784,1569.0,1568.9,0.03053797]
[1673956941692,26.35508317,1569.0,1568.9,0.03053797]
[1673956942587,28.26226887,1569.0,1568.9,0.03053797]
[1673956943933,25.87787527,1569.0,1568.9,0.03053797]
[1673956944749,26.35508317,1569.0,1568.9,0.03053797]
[1673956945022,28.26171112,1569.0,1568.9,0.03053797]
[1673956945169,26.35508317,1569.0,1568.9,0.03053797]
[1673956945407,24.90108317,1569.0,1568.9,0.03053797]
[1673956945602,26.35008317,1569.0,1568.9,0.03053797]
[1673956945815,29.00331227,1569.0,1568.9,0.00053797]
[1673956946004,42.45632778,1569.0,1568.9,0.00053797]
[1673956946542,36.01743277,1569.0,1568.9,0.00053797]
[1673956946746,38.39979215,1569.0,1568.9,0.00053797]
[1673956947895,36.01743277,1569.0,1568.9,0.00053797]
[1673956948427,42.39091277,1569.0,1568.9,0.00053797]
[1673956949524,44.77218937,1569.0,1568.9,0.00053797]
[1673956949839,43.68065053,1569.0,1568.9,0.00053797]
[1673956950362,41.29937393,1569.0,1568.9,0.00053797]
[1673956950761,18.08530614,1569.0,1568.9,0.00053797]
[1673956950969,23.23706614,1569.0,1568.9,0.00053797]
[1673956951355,25.1420705,1569.0,1568.9,0.00053797]
[1673956952145,31.5155505,1569.0,1568.9,0.00053797]
[1673956952467,31.7455505,1569.0,1568.9,0.00053797]
[1673956952680,31.76297393,1569.0,1568.9,0.00053797]
[1673956953946,24.91306663,1569.0,1568.9,0.00053797]
[1673956954099,26.81807099,1569.0,1568.9,0.00053797]
[1673956954795,25.86779393,1569.0,1568.9,0.00053797]
[1673956955475,28.24907053,1569.0,1568.9,0.00053797]
[1673956956884,28.24953816,1569.0,1568.9,0.00053797]
[1673956957412,25.86826156,1569.0,1568.9,0.00053797]
[1673956957600,32.24174156,1569.0,1568.9,0.00053797]
[1673956958879,34.62301816,1569.0,1568.9,0.00053797]
[1673956959796,32.71754617,1569.0,1568.9,0.00053797]
[1673956960682,33.33273935,1569.0,1568.9,0.00053797]
[1673956960839,33.97907853,1569.0,1568.9,0.00053797]
[1673956963191,36.84035084,1569.0,1568.9,0.00053797]
[1673956963838,36.19401166,1569.0,1568.9,0.00053797]
[1673956964029,33.33273935,1569.0,1568.9,0.00053797]
[1673956964416,36.19401166,1569.0,1568.9,0.00053797]
[1673956965640,33.19754188,1569.0,1568.9,0.00053797]
[1673956965987,36.19406505,1569.0,1568.9,0.00053797]
[1673956967052,36.19406505,1569.0,1568.8,0.03347466]
[1673956967411,28.47187948,1568.9,1568.8,0.03347466]
[1673956967777,28.53787948,1568.9,1568.8,0.03347466]
[1673956967950,28.53787948,1568.9,1568.8,0.02981338]
[1673956968313,26.15370057,1568.9,1568.8,0.02981338]
[1673956969467,27.61370057,1568.9,1568.8,0.02981338]
[1673956969887,30.47497288,1568.9,1568.8,0.02981338]
[1673956970098,30.95327288,1568.9,1568.8,0.02981338]
[1673956970344,28.09200057,1568.9,1568.8,0.02981338]
[1673956972623,30.95530849,1568.9,1568.8,0.02981338]
[1673956978977,30.95631706,1568.9,1568.8,0.02981338]
[1673956979149,28.09200057,1568.9,1568.8,0.02981338]
[1673956980131,26.63200057,1568.9,1568.8,0.02981338]
[1673956985025,26.15370057,1568.9,1568.8,0.02981338]
[1673956988079,29.01817736,1568.9,1568.8,0.02981338]
[1673956988423,29.01817736,1568.9,1568.8,0.02680899]
[1673956989236,26.15370057,1568.9,1568.8,0.02680899]
[1673956992134,26.10370057,1568.9,1568.8,0.02680899]
[1673956993810,28.96817736,1568.9,1568.8,0.02680899]
[1673956993997,29.44647736,1568.9,1568.8,0.02680899]
[1673956997270,28.96817736,1568.9,1568.8,0.02680899]
[1673956999273,22.48429407,1568.9,1568.8,0.02680899]
[1673956999587,24.64255566,1568.9,1568.8,1.03180899]
[1673957000115,24.64255566,1568.9,1568.8,0.02680899]
[1673957000426,22.25429407,1568.9,1568.8,0.02680899]
[1673957000581,22.48429407,1568.9,1568.8,0.02680899]
[1673957001246,25.86071916,1568.9,1568.8,0.02680899]
[1673957003030,28.72519595,1568.9,1568.8,0.02680899]
[1673957003951,29.70875725,1568.9,1568.8,0.02680899]
[1673957004440,28.72519595,1568.9,1568.8,0.02680899]
[1673957006210,25.34877086,1568.9,1568.8,0.02680899]
[1673957006428,22.48429407,1568.9,1568.8,0.02680899]
[1673957006738,25.34877086,1568.9,1568.8,0.02680899]
[1673957008365,26.81063216,1568.9,1568.8,0.02680899]
[1673957008827,26.33233216,1568.9,1568.8,0.02680899]
[1673957009034,30.18875848,1568.9,1568.8,0.02680899]
[1673957010886,29.20519718,1568.9,1568.8,0.02680899]
[1673957011097,25.34877086,1568.9,1568.8,0.02680899]
[1673957014397,25.34877086,1568.9,1568.8,0.02456947]
[1673957014708,26.33233216,1568.9,1568.8,0.02456947]
[1673957014919,23.46785537,1568.9,1568.8,0.02456947]
[1673957015797,26.8060064,1568.9,1568.8,0.02456947]
[1673957015989,23.94615537,1568.9,1568.8,0.02456947]
[1673957016198,30.64070443,1568.9,1568.8,0.02456947]
[1673957016869,29.60908147,1568.9,1568.8,0.02456947]
[1673957017230,28.62552017,1568.9,1568.8,0.02456947]
[1673957017670,28.62552017,1568.9,1568.8,0.01995492]
[1673957017982,51.6798958,1568.9,1568.8,0.01995492]
[1673957018205,51.6798958,1568.9,1568.7,0.02793287]
[1673957018206,1.0,1568.8,1568.7,0.02793287]
[1673957018405,28.99315067,1568.8,1568.7,0.02793287]
[1673957018761,30.11142845,1568.8,1568.7,0.02793287]
[1673957019072,33.04271197,1568.8,1568.7,0.02793287]
[1673957019224,29.46508927,1568.8,1568.7,0.02793287]
[1673957019646,31.89808927,1568.8,1568.7,0.02793287]
[1673957020276,34.89507649,1568.8,1568.7,0.02793287]
[1673957020486,38.23707287,1568.8,1568.7,0.02793287]
[1673957021014,41.81469557,1568.8,1568.7,0.02793287]
[1673957021371,38.23707287,1568.8,1568.7,0.02793287]
[1673957021749,34.89507649,1568.8,1568.7,0.02793287]
[1673957022209,38.23601412,1568.8,1568.7,0.02793287]
[1673957022745,41.81363682,1568.8,1568.7,0.02793287]
[1673957022991,38.8823533,1568.8,1568.7,0.02793287]
[1673957023887,35.54141567,1568.8,1568.7,0.02793287]
[1673957025485,35.5413681,1568.8,1568.7,0.02793287]
[1673957026213,38.88230573,1568.8,1568.7,0.02793287]
[1673957026440,35.5413681,1568.8,1568.7,0.02793287]
[1673957026808,38.88230573,1568.8,1568.7,0.02793287]
[1673957027014,35.5413681,1568.8,1568.7,0.02793287]
[1673957027262,36.47847379,1568.8,1568.7,0.02793287]
[1673957027580,34.49491249,1568.8,1568.7,0.02793287]
[1673957028682,34.72491249,1568.8,1568.7,0.02793287]
[1673957029035,34.07857331,1568.8,1568.7,0.02793287]
[1673957030579,31.08163366,1568.8,1568.7,0.02793287]
[1673957031349,28.21922797,1568.8,1568.7,0.02793287]
[1673957031559,24.92053065,1568.8,1568.7,0.02793287]
[1673957032677,22.53549407,1568.8,1568.7,0.02793287]
[1673957035662,26.04423894,1568.8,1568.7,0.02793287]
[1673957035827,27.02780024,1568.8,1568.7,0.02793287]
[1673957036037,31.59196433,1568.8,1568.7,0.02793287]
[1673957036461,34.72630965,1568.8,1568.7,0.02793287]
[1673957038245,49.58186998,1568.8,1568.7,0.02296336]
[1673957038574,50.61349294,1568.8,1568.7,0.02296336]
[1673957038794,49.58186998,1568.8,1568.7,0.02296336]
[1673957039144,39.28905026,1568.8,1568.7,0.02296336]
[1673957039303,39.76735026,1568.8,1568.7,0.02296336]
[1673957039944,39.28905026,1568.8,1568.7,0.02296336]
[1673957040694,39.76735026,1568.8,1568.7,0.02296336]
[1673957041564,36.77059925,1568.8,1568.7,0.02296336]
[1673957041748,39.76759231,1568.8,1568.7,0.02296336]
[1673957042715,37.59863424,1568.8,1568.7,0.02296336]
[1673957042868,36.95229506,1568.8,1568.7,0.02296336]
[1673957043316,32.4928633,1568.8,1568.7,0.02296336]
[1673957043517,34.9208633,1568.8,1568.7,0.02296336]
[1673957043966,32.70455864,1568.8,1568.7,0.02296336]
[1673957044292,36.27429925,1568.8,1568.7,0.02296336]
[1673957044452,39.74953679,1568.8,1568.7,0.02296336]
[1673957045328,39.74953679,1568.8,1568.7,0.01887957]
[1673957047022,37.32153679,1568.8,1568.7,0.01887957]
[1673957047237,39.76753679,1568.8,1568.7,0.01887957]
[1673957047756,46.48153679,1568.8,1568.7,0.01887957]
[1673957047950,56.43344949,1568.8,1568.7,0.01887957]
[1673957048349,53.09370888,1568.8,1568.7,0.01887957]
[1673957049378,50.09677134,1568.8,1568.7,0.01887957]
[1673957049839,53.09383534,1568.8,1568.7,0.01887957]
[1673957051115,49.51621264,1568.8,1568.7,0.01887957]
[1673957051341,57.04377415,1568.8,1568.7,0.01887957]
[1673957052239,57.04377415,1568.8,1568.7,0.00989235]
[1673957053319,49.51621264,1568.8,1568.7,0.00989235]
[1673957053536,42.80221264,1568.8,1568.7,0.00989235]
[1673957053842,42.15587346,1568.8,1568.7,0.00989235]
[1673957054003,52.81981227,1568.8,1568.7,0.00989235]
[1673957054412,56.39743497,1568.8,1568.6,0.03164736]
[1673957054689,28.29251998,1568.7,1568.6,0.03164736]
[1673957054843,31.70054873,1568.7,1568.6,0.03164736]
[1673957057106,32.68411003,1568.7,1568.6,0.03164736]
[1673957057435,29.34208128,1568.7,1568.6,0.03164736]
[1673957058308,40.85670398,1568.7,1568.6,7.36e-06]
[1673957058571,1.0,1568.6,1568.5,0.02710939]
[1673957058786,39.54974086,1568.6,1568.5,0.02710939]
[1673957059004,44.63099208,1568.6,1568.5,0.02710939]
[1673957059152,44.39550154,1568.6,1568.5,0.02710939]
[1673957060043,43.36387858,1568.6,1568.5,0.02710939]
[1673957060210,47.39285362,1568.6,1568.5,0.02218171]
[1673957060432,46.36123066,1568.6,1568.5,0.02218171]
[1673957061048,38.6636024,1568.6,1568.5,0.02218171]
[1673957061254,32.87651692,1568.6,1568.5,0.02218171]
[1673957061507,35.74038394,1568.6,1568.5,0.02218171]
[1673957062774,33.74038394,1568.6,1568.5,0.02218171]
[1673957063172,30.39921985,1568.6,1568.5,0.02218171]
[1673957064735,30.62921985,1568.6,1568.5,0.02218171]
[1673957065206,24.53535283,1568.6,1568.5,0.02218171]
[1673957065354,10.73629327,1568.6,1568.5,1.24118171]
[1673957065562,10.73629327,1568.6,1568.5,1.49106139]
[1673957065778,8.82742375,1568.6,1568.5,1.49106139]
[1673957066028,10.73633219,1568.6,1568.5,1.49106139]
[1673957066358,10.73633219,1568.6,1568.5,1.24118171]
[1673957066521,10.73632611,1568.6,1568.5,1.24118171]
[1673957066742,8.82742375,1568.6,1568.5,1.24118171]
[1673957069924,10.7363512,1568.6,1568.5,1.24118171]
[1673957070079,26.83319527,1568.6,1568.5,0.02218171]
[1673957070751,24.92426782,1568.6,1568.5,0.02218171]
[1673957071096,22.53795407,1568.6,1568.5,0.02218171]
[1673957072232,25.40182109,1568.6,1568.5,0.02218171]
[1673957073524,28.5794732,1568.6,1568.5,0.02218171]
[1673957074044,32.05769166,1568.6,1568.5,0.02218171]
[1673957074412,28.71560618,1568.6,1568.5,0.02218171]
[1673957074993,32.05769166,1568.6,1568.5,0.02218171]
[1673957077056,31.58098835,1568.6,1568.5,0.02218171]
[1673957079467,28.17333624,1568.6,1568.5,0.02218171]
[1673957081307,28.40333624,1568.6,1568.5,0.02218171]
[1673957081521,25.53795407,1568.6,1568.5,0.02218171]
[1673957081714,28.40360085,1568.6,1568.5,0.02218171]
[1673957082542,25.53795407,1568.6,1568.5,0.02218171]
[1673957082754,29.36314553,1568.6,1568.5,0.02218171]
[1673957084366,32.22872944,1568.6,1568.5,0.02218171]
[1673957085891,28.40353798,1568.6,1568.5,0.02218171]
[1673957086670,28.40353798,1568.6,1568.5,0.01992124]
[1673957086833,25.53795407,1568.6,1568.5,0.01992124]
[1673957089301,32.25195407,1568.6,1568.5,0.01992124]
[1673957095028,35.11792013,1568.6,1568.5,0.01992124]
[1673957095246,28.17392013,1568.6,1568.5,1.13792124]
[1673957095506,18.79881013,1568.6,1568.5,1.25517488]
[1673957095822,18.32091616,1568.6,1568.5,2.70217488]
[1673957096610,11.94580616,1568.6,1568.5,2.70217488]
[1673957097291,11.94580616,1568.6,1568.5,2.58492124]
[1673957100236,18.32091616,1568.6,1568.5,2.58492124]
[1673957101020,18.32091616,1568.6,1568.5,1.13792124]
[1673957103661,11.94580616,1568.6,1568.5,1.13792124]
[1673957104844,1.97604506,1568.6,1568.5,1.13792124]
[1673957105066,3.34257885,1568.6,1568.5,2.86227488]
[1673957105221,1.43253379,1568.6,1568.5,2.86227488]
[1673957108605,1.43253379,1568.6,1568.5,2.85913162]
[1673957110599,2.38682371,1568.6,1568.5,18.07115162]
[1673957110814,1.02028992,1568.7,1568.6,0.94916561]
[1673957111046,0.95428992,1568.7,1568.6,25.52850614]
[1673957111254,0.95428992,1568.8,1568.7,7.3747]
[1673957111517,2.39677442,1568.9,1568.7,23.06537811]
[1673957111837,0.96424063,1568.9,1568.8,2.922]
[1673957112050,0.96424063,1568.9,1568.8,18.12341781]
[1673957112358,0.96424063,1568.9,1568.8,18.14769592]
[1673957113048,0.00995071,1568.9,1568.8,18.14769592]
[1673957118311,0.00995071,1568.9,1568.8,18.18941781]
[1673957118584,2.04600001,1569.0,1568.9,1.0]
[1673957118799,2.04600001,1569.0,1568.9,18.72682178]
[1673957119016,2.04600001,1569.0,1568.9,18.79282178]
[1673957124136,0.066,1569.3,1569.1,19.11924]
[1673957124342,0.14783427,1569.4,1569.2,1.461]
[1673957124695,0.14783427,1569.4,1569.3,7.81926]
[1673957124866,0.14783427,1569.4,1569.3,1.513]
[1673957125215,1.14783427,1569.4,1569.3,1.447]
[1673957125645,0.14783427,1569.4,1569.3,1.447]
[1673957126317,1.10212419,1569.4,1569.3,1.447]
[1673957127383,1.10212419,1569.4,1569.2,6.43865]
[1673957127601,1.10212419,1569.4,1569.2,8.357098]
[1673957128209,0.14783427,1569.4,1569.2,8.357098]
[1673957128421,0.14783427,1569.4,1569.2,14.729768]
[1673957128877,0.14983427,1569.4,1569.2,14.727768]
[1673957129104,0.14783427,1569.4,1569.2,14.729768]
[1673957129753,0.14783427,1569.4,1569.3,1.4729768]
[1673957129903,0.14783427,1569.4,1569.3,7.8452368]
[1673957130112,0.14783427,1569.4,1569.3,7.9112368]
[1673957131821,0.14783427,1569.4,1569.3,14.2834968]
[1673957132266,0.14783427,1569.4,1569.3,20.6557568]
[1673957132705,0.14783427,1569.4,1569.3,21.11889731]
[1673957136574,0.14783427,1569.4,1569.3,22.57989731]
[1673957138681,0.14783427,1569.4,1569.3,8.37437731]
[1673957138901,0.14783427,1569.4,1569.3,6.90140051]
[1673957139629,0.14783427,1569.4,1569.3,13.27366051]
[1673957143060,0.14783427,1569.4,1569.3,19.64592051]